[Event "MČR juniorů a juniorek v rapid šachu 2024"]
[Site "Hotel Fit Fun, Harrachov, Czech Republic"]
[Date "2024.09.21"]
[Round "1.34"]
[White "Kopecka Anna"]
[Black "Mrazek Adam"]
[Result "0-1"]
[TimeControl "20+5"]
[WhiteFideId "23767740"]
[BlackFideId "23725010"]
[WhiteElo "1431"]
[BlackElo "1830"]

1. d4 {[%clk 00:20:08]} {[%emt 00:00:02]} Nf6 {[%clk 00:20:01]} {[%emt
00:00:10]} 2. Nf3 {[%clk 00:20:11]} {[%emt 00:00:01]} d5 {[%clk 00:20:05]}
{[%emt 00:00:02]} 3. e3 {[%clk 00:20:15]} e6 {[%clk 00:19:57]} {[%emt
00:00:13]} 4. Bd3 {[%clk 00:20:18]} {[%emt 00:00:02]} c5 {[%clk 00:19:56]}
{[%emt 00:00:06]} 5. c3 {[%clk 00:20:18]} {[%emt 00:00:05]} Nc6 {[%clk
00:19:59]} {[%emt 00:00:02]} 6. Nbd2 {[%clk 00:19:40]} {[%emt 00:00:42]} b6
{[%clk 00:19:29]} {[%emt 00:00:36]} 7. Qe2 {[%clk 00:18:54]} {[%emt 00:00:51]}
Be7 {[%clk 00:18:34]} {[%emt 00:00:59]} 8. O-O {[%clk 00:17:26]} {[%emt
00:01:33]} O-O {[%clk 00:17:49]} {[%emt 00:00:51]} 9. dxc5 {[%emt 00:01:35]}
bxc5 {[%clk 00:17:05]} {[%emt 00:00:06]} 10. e4 {[%clk 00:14:36]} {[%emt
00:02:07]} dxe4 {[%clk 00:10:25]} {[%emt 00:06:46]} 11. Nxe4 {[%clk 00:14:33]}
{[%emt 00:00:08]} Bb7 {[%clk 00:10:22]} {[%emt 00:00:07]} 12. Bg5 {[%clk
00:13:00]} {[%emt 00:01:38]} c4 {[%clk 00:05:17]} {[%emt 00:05:11]} 13. Bc2
{[%clk 00:08:57]} {[%emt 00:04:07]} Nxe4 {[%clk 00:03:16]} {[%emt 00:02:07]} 14.
Bxe7 {[%clk 00:07:43]} {[%emt 00:01:19]} Nxe7 {[%clk 00:02:56]} {[%emt
00:00:25]} 15. Bxe4 {[%clk 00:07:34]} {[%emt 00:00:13]} Bxe4 {[%clk 00:02:56]}
{[%emt 00:00:05]} 16. Qxe4 {[%clk 00:07:37]} {[%emt 00:00:03]} Qd5 {[%clk
00:02:25]} {[%emt 00:00:36]} 17. Qxd5 {[%clk 00:06:31]} {[%emt 00:01:11]} Nxd5
{[%clk 00:02:29]} {[%emt 00:00:01]} 18. Rad1 {[%clk 00:05:29]} {[%emt
00:01:06]} Rab8 {[%clk 00:01:22]} {[%emt 00:01:12]} 19. Rd2 {[%clk 00:04:24]}
{[%emt 00:01:11]} Rb7 {[%clk 00:00:55]} {[%emt 00:00:32]} 20. Ne5 {[%clk
00:03:17]} {[%emt 00:01:10]} Rc8 {[%clk 00:00:59]} {[%emt 00:00:03]} 21. Rfd1
{[%clk 00:01:16]} {[%emt 00:02:06]} f6 {[%clk 00:00:58]} {[%emt 00:00:06]} 22.
Nf3 {[%clk 00:01:04]} {[%emt 00:00:17]} Rcb8 {[%clk 00:01:00]} {[%emt
00:00:02]} 23. h3 {[%clk 00:00:31]} {[%emt 00:00:38]} Rxb2 {[%clk 00:00:47]}
{[%emt 00:00:19]} 0-1



[ePGN "0.1;DGT LiveChess/2.2.6"]

[Event "MČR juniorů a juniorek v rapid šachu 2024"]
[Site "Hotel Fit Fun, Harrachov, Czech Republic"]
[Date "2024.09.21"]
[Round "1.35"]
[White "Nespurek Jakub"]
[Black "Krizan Jakub"]
[Result "1-0"]
[TimeControl "20+5"]
[WhiteFideId "391816"]
[BlackFideId "23717017"]
[WhiteElo "1817"]
[BlackElo "1000"]

1. e4 {[%clk 00:20:07]} {[%emt 00:00:02]} c5 {[%clk 00:20:08]} {[%emt
00:00:03]} 2. c3 {[%clk 00:20:10]} {[%emt 00:00:02]} Nc6 {[%clk 00:20:08]}
{[%emt 00:00:05]} 3. d4 {[%clk 00:20:13]} {[%emt 00:00:02]} cxd4 {[%clk
00:19:58]} {[%emt 00:00:14]} 4. cxd4 {[%clk 00:20:15]} {[%emt 00:00:03]} e6
{[%clk 00:19:49]} {[%emt 00:00:14]} 5. Nc3 {[%clk 00:20:04]} {[%emt 00:00:16]}
Bb4 {[%clk 00:19:20]} {[%emt 00:00:35]} 6. Nf3 {[%clk 00:19:53]} {[%emt
00:00:16]} d6 {[%clk 00:18:59]} {[%emt 00:00:26]} 7. Bd3 {[%clk 00:19:33]}
{[%emt 00:00:24]} Nf6 {[%clk 00:18:02]} {[%emt 00:01:02]} 8. O-O {[%clk
00:19:22]} {[%emt 00:00:15]} h6 {[%clk 00:17:54]} {[%emt 00:00:15]} 9. d5
{[%clk 00:16:42]} {[%emt 00:02:45]} Bxc3 {[%clk 00:15:30]} {[%emt 00:02:29]} 10.
dxc6 {[%clk 00:16:22]} {[%emt 00:00:24]} Ba5 {[%clk 00:13:42]} {[%emt
00:01:54]} 11. cxb7 {[%clk 00:16:12]} {[%emt 00:00:15]} Bxb7 {[%clk 00:12:43]}
{[%emt 00:01:04]} 12. Bb5+ {[%clk 00:14:57]} {[%emt 00:01:18]} Nd7 {[%emt
00:01:23]} 13. Qxd6 {[%clk 00:14:29]} {[%emt 00:00:29]} Bxe4 {[%clk 00:09:43]}
{[%emt 00:01:52]} 14. Ne5 {[%clk 00:13:49]} {[%emt 00:00:44]} Qe7 {[%clk
00:08:14]} {[%emt 00:01:36]} 15. Bxd7+ {[%clk 00:13:00]} {[%emt 00:00:53]} Kf8
{[%clk 00:08:05]} {[%emt 00:00:14]} 16. Qxe7+ {[%clk 00:12:58]} {[%emt
00:00:06]} Kxe7 {[%clk 00:08:09]} {[%emt 00:00:02]} 17. Bc6 {[%clk 00:13:00]}
{[%emt 00:00:03]} Bf5 {[%clk 00:07:17]} {[%emt 00:00:58]} 18. Bxa8 {[%clk
00:13:01]} {[%emt 00:00:04]} Rxa8 {[%clk 00:07:19]} {[%emt 00:00:03]} 19. Nc6+
{[%clk 00:13:04]} {[%emt 00:00:02]} Kf6 {[%clk 00:07:15]} {[%emt 00:00:09]} 20.
Nxa5 {[%clk 00:13:06]} {[%emt 00:00:02]} g5 {[%clk 00:07:13]} {[%emt 00:00:07]}
21. Bd2 {[%clk 00:13:06]} {[%emt 00:00:06]} h5 {[%clk 00:06:34]} {[%emt
00:00:43]} 22. Bc3+ {[%clk 00:13:09]} {[%emt 00:00:02]} e5 {[%clk 00:06:38]}
{[%emt 00:00:01]} 23. Nc6 {[%clk 00:13:07]} {[%emt 00:00:07]} Re8 {[%clk
00:06:18]} {[%emt 00:00:25]} 24. Nxe5 {[%clk 00:13:08]} {[%emt 00:00:04]} Kg7
{[%clk 00:06:14]} {[%emt 00:01:36]} 25. Rfe1 {[%clk 00:14:04]} {[%emt
00:00:07]} f6 {[%clk 00:06:09]} {[%emt 00:00:10]} 26. Nf3 {[%clk 00:14:06]}
{[%emt 00:00:03]} Rc8 {[%clk 00:06:01]} {[%emt 00:00:14]} 27. Nxg5 {[%clk
00:14:03]} {[%emt 00:00:06]} Kg6 {[%clk 00:05:50]} {[%emt 00:00:16]} 28. Ne4
{[%clk 00:14:01]} {[%emt 00:00:07]} Rc4 {[%clk 00:05:08]} {[%emt 00:00:48]} 29.
Nd6 {[%clk 00:13:57]} {[%emt 00:00:09]} Rf4 {[%clk 00:05:04]} {[%emt 00:00:09]}
30. Nxf5 {[%clk 00:13:59]} {[%emt 00:00:03]} Rxf5 {[%clk 00:05:06]} {[%emt
00:00:03]} 31. Re6 {[%clk 00:14:01]} {[%emt 00:00:02]} Kh7 {[%clk 00:04:52]}
{[%emt 00:00:19]} 32. Bxf6 {[%clk 00:14:01]} {[%emt 00:00:05]} Kg8 {[%clk
00:04:29]} {[%emt 00:00:29]} 33. Bh4 {[%clk 00:13:58]} {[%emt 00:00:08]} Rf4
{[%clk 00:04:13]} {[%emt 00:00:21]} 34. g3 {[%clk 00:13:56]} {[%emt 00:00:06]}
Rb4 {[%clk 00:04:14]} {[%emt 00:00:06]} 35. Re7 {[%clk 00:13:57]} {[%emt
00:00:03]} Rxb2 {[%clk 00:04:14]} {[%emt 00:00:04]} 36. Rd1 {[%clk 00:13:55]}
{[%emt 00:00:08]} Rb8 {[%clk 00:04:14]} {[%emt 00:00:05]} 37. Rd6 {[%clk
00:13:53]} {[%emt 00:00:07]} Rb6 {[%clk 00:03:47]} {[%emt 00:00:32]} 38. Rd8#
{[%emt 00:00:02]} 1-0



[ePGN "0.1;DGT LiveChess/2.2.6"]

[Event "MČR juniorů a juniorek v rapid šachu 2024"]
[Site "Hotel Fit Fun, Harrachov, Czech Republic"]
[Date "2024.09.21"]
[Round "1.36"]
[White "Horvath Michal"]
[Black "Sknouril Jakub"]
[Result "0-1"]
[TimeControl "20+5"]
[BlackFideId "23731133"]
[WhiteElo "1000"]
[BlackElo "1806"]

1. e4 {[%clk 00:20:07]} {[%emt 00:00:02]} d6 {[%clk 00:20:04]} {[%emt
00:00:06]} 2. d4 {[%clk 00:19:45]} {[%emt 00:00:28]} Nf6 {[%clk 00:20:07]}
{[%emt 00:00:01]} 3. Nc3 {[%clk 00:19:48]} {[%emt 00:00:03]} Nbd7 {[%clk
00:20:11]} {[%emt 00:00:01]} 4. Nf3 {[%clk 00:19:18]} {[%emt 00:00:35]} e5
{[%clk 00:20:14]} {[%emt 00:00:01]} 5. Bg5 {[%clk 00:18:52]} {[%emt 00:00:31]}
Be7 {[%clk 00:20:17]} {[%emt 00:00:03]} 6. Bc4 {[%clk 00:18:30]} {[%emt
00:00:27]} O-O {[%clk 00:20:15]} {[%emt 00:00:07]} 7. Qd2 {[%clk 00:17:35]}
{[%emt 00:01:02]} exd4 {[%clk 00:19:24]} {[%emt 00:00:54]} 8. Nxd4 {[%clk
00:17:18]} {[%emt 00:00:21]} Nc5 {[%clk 00:19:27]} {[%emt 00:00:02]} 9. Bd3
{[%clk 00:16:58]} {[%emt 00:00:25]} Re8 {[%clk 00:17:19]} {[%emt 00:02:14]} 10.
O-O-O {[%clk 00:16:51]} {[%emt 00:00:12]} Nfxe4 {[%clk 00:14:26]} {[%emt
00:02:57]} 11. Bxe7 {[%clk 00:16:23]} {[%emt 00:00:33]} Rxe7 {[%clk 00:14:17]}
{[%emt 00:00:15]} 12. Nxe4 {[%clk 00:15:29]} {[%emt 00:00:58]} Nxe4 {[%clk
00:14:20]} {[%emt 00:00:02]} 13. Qf4 {[%clk 00:14:32]} {[%emt 00:01:02]} Nc5
{[%clk 00:13:04]} {[%emt 00:01:21]} 14. Qh4 {[%clk 00:12:52]} {[%emt 00:01:45]}
Nxd3+ {[%clk 00:12:59]} {[%emt 00:00:10]} 15. Rxd3 {[%clk 00:12:54]} {[%emt
00:00:02]} Bd7 {[%clk 00:12:42]} {[%emt 00:00:23]} 16. Qg3 {[%clk 00:11:30]}
{[%emt 00:01:29]} Re5 {[%clk 00:11:42]} {[%emt 00:01:06]} 17. Rhd1 {[%clk
00:10:26]} {[%emt 00:01:09]} Qg5+ {[%clk 00:08:04]} {[%emt 00:03:42]} 18. Qxg5
{[%clk 00:09:51]} {[%emt 00:00:41]} Rxg5 {[%clk 00:08:06]} {[%emt 00:00:02]} 19.
Nb3 {[%clk 00:09:53]} {[%emt 00:00:03]} Rxg2 {[%clk 00:05:31]} {[%emt
00:02:41]} 20. Nc5 {[%clk 00:09:45]} {[%emt 00:00:13]} Bc6 {[%clk 00:05:34]}
{[%emt 00:00:02]} 21. h3 {[%clk 00:09:16]} {[%emt 00:00:33]} Re8 {[%clk
00:04:56]} {[%emt 00:00:43]} 22. Nb3 {[%clk 00:08:46]} {[%emt 00:00:35]} Rxf2
{[%clk 00:03:51]} {[%emt 00:01:11]} 23. Rg1 {[%clk 00:08:09]} {[%emt 00:00:40]}
g6 {[%clk 00:02:56]} {[%emt 00:01:01]} 24. Nd4 {[%clk 00:06:43]} {[%emt
00:01:31]} Be4 {[%clk 00:01:48]} {[%emt 00:01:13]} 25. Re3 {[%clk 00:06:28]}
{[%emt 00:00:19]} a6 {[%clk 00:01:07]} {[%emt 00:00:48]} 26. a3 {[%clk
00:05:42]} {[%emt 00:00:51]} c5 {[%clk 00:01:09]} {[%emt 00:00:02]} 27. Ne2
{[%clk 00:04:22]} {[%emt 00:01:25]} Bc6 {[%clk 00:01:12]} {[%emt 00:00:02]} 28.
Rxe8+ {[%clk 00:03:47]} {[%emt 00:00:40]} Bxe8 {[%clk 00:01:16]} {[%emt
00:00:01]} 29. Nc3 {[%clk 00:03:38]} {[%emt 00:00:14]} Bc6 {[%clk 00:01:07]}
{[%emt 00:00:14]} 30. Re1 {[%clk 00:02:45]} {[%emt 00:00:59]} Kf8 {[%clk
00:01:11]} 31. Ne4 {[%clk 00:02:32]} {[%emt 00:00:17]} Bxe4 {[%clk 00:01:13]}
{[%emt 00:00:04]} 32. Rxe4 {[%clk 00:02:35]} {[%emt 00:00:01]} Rf6 {[%clk
00:01:16]} {[%emt 00:00:02]} 33. b4 {[%clk 00:02:30]} {[%emt 00:00:10]} Re6
{[%clk 00:01:19]} {[%emt 00:00:02]} 34. Rc4 {[%clk 00:02:25]} {[%emt 00:00:10]}
b5 {[%clk 00:01:20]} {[%emt 00:00:04]} 35. Rf4 {[%clk 00:02:21]} {[%emt
00:00:08]} c4 {[%clk 00:01:25]} {[%emt 00:00:02]} 36. Rh4 {[%clk 00:02:11]}
{[%emt 00:00:14]} h5 {[%clk 00:01:27]} {[%emt 00:00:03]} 37. a4 {[%clk
00:02:06]} {[%emt 00:00:10]} d5 {[%clk 00:01:28]} {[%emt 00:00:04]} 38. Rf4
{[%clk 00:02:00]} {[%emt 00:00:11]} Ke7 {[%clk 00:01:32]} {[%emt 00:00:02]} 39.
Rd4 {[%clk 00:01:52]} {[%emt 00:00:12]} Kd6 {[%clk 00:01:35]} {[%emt 00:00:02]}
40. Kd2 {[%clk 00:01:49]} {[%emt 00:00:08]} Re4 {[%clk 00:01:37]} {[%emt
00:00:02]} 41. Kc3 {[%clk 00:01:39]} {[%emt 00:00:16]} Rxd4 {[%clk 00:01:31]}
{[%emt 00:00:12]} 42. Kxd4 {[%clk 00:01:42]} {[%emt 00:00:02]} g5 {[%clk
00:01:35]} 43. axb5 {[%clk 00:01:41]} {[%emt 00:00:06]} axb5 {[%clk 00:01:40]}
44. c3 {[%clk 00:01:40]} {[%emt 00:00:06]} f5 {[%clk 00:01:33]} {[%emt
00:00:12]} 0-1



[ePGN "0.1;DGT LiveChess/2.2.6"]

[Event "MČR juniorů a juniorek v rapid šachu 2024"]
[Site "Hotel Fit Fun, Harrachov, Czech Republic"]
[Date "2024.09.21"]
[Round "1.4"]
[White "Andrle Filip"]
[Black "Ret Adam Josef"]
[Result "1/2-1/2"]
[TimeControl "20+5"]
[WhiteFideId "23718749"]
[BlackFideId "384240"]
[WhiteElo "1789"]
[BlackElo "2038"]

1. e4 {[%clk 00:20:08]} {[%emt 00:00:02]} c5 {[%clk 00:20:10]} {[%emt
00:00:02]} 2. Nc3 {[%clk 00:20:11]} {[%emt 00:00:01]} Nc6 {[%clk 00:19:42]}
{[%emt 00:00:33]} 3. g3 {[%clk 00:20:13]} {[%emt 00:00:03]} e5 {[%clk
00:19:31]} {[%emt 00:00:15]} 4. Bg2 {[%clk 00:20:07]} {[%emt 00:00:11]} g6
{[%clk 00:19:35]} {[%emt 00:00:02]} 5. Nge2 {[%clk 00:19:52]} {[%emt 00:00:19]}
Bg7 {[%clk 00:19:39]} 6. O-O {[%clk 00:19:52]} {[%emt 00:00:06]} Nge7 {[%clk
00:19:44]} {[%emt 00:00:01]} 7. d3 {[%clk 00:19:40]} {[%emt 00:00:17]} O-O
{[%clk 00:19:42]} {[%emt 00:00:07]} 8. Be3 {[%clk 00:17:15]} {[%emt 00:02:29]}
d6 {[%clk 00:19:46]} {[%emt 00:00:02]} 9. Qd2 {[%clk 00:16:28]} {[%emt
00:00:51]} Be6 {[%clk 00:19:50]} {[%emt 00:00:02]} 10. Nd5 {[%clk 00:16:18]}
{[%emt 00:00:14]} Qd7 {[%clk 00:19:00]} {[%emt 00:00:56]} 11. c3 {[%clk
00:15:58]} {[%emt 00:00:25]} Bh3 {[%clk 00:17:28]} {[%emt 00:01:37]} 12. d4
{[%clk 00:14:35]} {[%emt 00:01:27]} Bxg2 {[%clk 00:17:23]} {[%emt 00:00:11]} 13.
Kxg2 {[%clk 00:14:36]} {[%emt 00:00:03]} cxd4 {[%clk 00:17:14]} {[%emt
00:00:14]} 14. cxd4 {[%clk 00:14:36]} {[%emt 00:00:05]} Nxd5 {[%clk 00:16:51]}
{[%emt 00:00:29]} 15. exd5 {[%clk 00:14:30]} {[%emt 00:00:11]} Ne7 {[%clk
00:16:07]} {[%emt 00:00:49]} 16. Nc3 {[%clk 00:13:40]} {[%emt 00:00:54]} Nf5
{[%clk 00:15:37]} {[%emt 00:00:35]} 17. dxe5 {[%clk 00:13:13]} {[%emt
00:00:32]} Nxe3+ {[%clk 00:12:55]} {[%emt 00:02:48]} 18. Qxe3 {[%clk 00:11:02]}
{[%emt 00:02:16]} Bxe5 {[%clk 00:12:58]} {[%emt 00:00:02]} 19. f4 {[%clk
00:10:18]} {[%emt 00:00:49]} Bxc3 {[%clk 00:12:20]} {[%emt 00:00:43]} 20. Qxc3
{[%clk 00:09:50]} {[%emt 00:00:32]} Rac8 {[%clk 00:12:24]} {[%emt 00:00:01]} 21.
Qd3 {[%clk 00:09:07]} {[%emt 00:00:48]} Rc5 {[%clk 00:11:27]} {[%emt 00:01:03]}
22. Rac1 {[%clk 00:08:39]} {[%emt 00:00:32]} Qb5 {[%clk 00:10:58]} {[%emt
00:00:34]} 23. Qxb5 {[%clk 00:07:57]} {[%emt 00:00:48]} Rxb5 {[%clk 00:11:02]}
{[%emt 00:00:01]} 24. Rc2 {[%clk 00:08:00]} {[%emt 00:00:02]} Rxd5 {[%clk
00:11:03]} {[%emt 00:00:05]} 25. Rff2 {[%clk 00:07:41]} {[%emt 00:00:22]} Rc5
{[%clk 00:10:25]} {[%emt 00:00:44]} 26. b4 {[%clk 00:07:01]} {[%emt 00:00:45]}
Rxc2 {[%clk 00:09:42]} {[%emt 00:00:48]} 27. Rxc2 {[%clk 00:07:01]} {[%emt
00:00:04]} Re8 {[%clk 00:09:43]} {[%emt 00:00:04]} 28. Kf3 {[%clk 00:06:17]}
{[%emt 00:00:49]} Re7 {[%clk 00:09:45]} {[%emt 00:00:04]} 29. Rc8+ {[%clk
00:06:12]} {[%emt 00:00:09]} Kg7 {[%clk 00:09:49]} {[%emt 00:00:02]} 30. Rd8
{[%clk 00:06:16]} Rc7 {[%clk 00:08:58]} {[%emt 00:00:56]} 31. Rxd6 {[%clk
00:05:59]} {[%emt 00:00:21]} Rc4 {[%clk 00:09:02]} {[%emt 00:00:02]} 32. b5
{[%clk 00:05:16]} {[%emt 00:00:48]} Rb4 {[%clk 00:09:06]} 33. Rd5 {[%clk
00:04:38]} {[%emt 00:00:43]} Rb2 {[%clk 00:08:58]} {[%emt 00:00:13]} 34. a4
{[%clk 00:04:34]} {[%emt 00:00:10]} Rxh2 {[%clk 00:08:38]} {[%emt 00:00:25]} 35.
Rd7 {[%clk 00:03:41]} {[%emt 00:00:57]} Ra2 {[%clk 00:08:37]} {[%emt 00:00:06]}
36. Rxb7 {[%clk 00:03:19]} {[%emt 00:00:26]} Rxa4 {[%clk 00:08:41]} {[%emt
00:00:02]} 37. b6 {[%clk 00:03:18]} {[%emt 00:00:07]} Ra3+ {[%clk 00:08:41]}
{[%emt 00:00:04]} 38. Kg2 {[%clk 00:03:10]} {[%emt 00:00:13]} a5 {[%clk
00:07:08]} {[%emt 00:01:38]} 39. Ra7 {[%clk 00:03:09]} {[%emt 00:00:06]} Rb3
{[%clk 00:07:01]} {[%emt 00:00:12]} 40. Rxa5 {[%clk 00:02:52]} {[%emt
00:00:22]} Rxb6 {[%clk 00:07:05]} {[%emt 00:00:01]} 41. Rc5 {[%clk 00:02:26]}
{[%emt 00:00:31]} Kf6 {[%clk 00:07:06]} {[%emt 00:00:04]} 42. Kf3 {[%clk
00:02:07]} {[%emt 00:00:23]} h6 {[%clk 00:06:45]} {[%emt 00:00:27]} 43. Ra5
{[%clk 00:01:58]} {[%emt 00:00:14]} Rb3+ {[%clk 00:06:27]} {[%emt 00:00:23]} 44.
Kg4 {[%clk 00:00:42]} {[%emt 00:01:21]} h5+ {[%clk 00:05:58]} {[%emt 00:00:33]}
45. Kh3 {[%clk 00:00:23]} {[%emt 00:00:24]} Rd3 {[%clk 00:05:54]} {[%emt
00:00:10]} 46. Rb5 {[%clk 00:00:20]} {[%emt 00:00:08]} Ke6 {[%clk 00:05:51]}
{[%emt 00:00:08]} 47. Re5+ {[%clk 00:00:18]} {[%emt 00:00:07]} Kd6 {[%clk
00:05:26]} {[%emt 00:00:30]} 48. Re8 {[%clk 00:00:17]} {[%emt 00:00:05]} Rc3
{[%clk 00:05:14]} {[%emt 00:00:18]} 49. Ra8 {[%clk 00:00:11]} {[%emt 00:00:12]}
Kd5 {[%clk 00:04:57]} {[%emt 00:00:22]} 50. Ra4 {[%clk 00:00:14]} {[%emt
00:00:02]} Rc4 {[%clk 00:04:55]} {[%emt 00:00:06]} 51. Rxc4 {[%clk 00:00:13]}
{[%emt 00:00:06]} Kxc4 {[%clk 00:04:56]} {[%emt 00:00:04]} 52. Kh4 {[%clk
00:00:17]} {[%emt 00:00:02]} Kd5 {[%clk 00:03:56]} {[%emt 00:01:04]} 53. Kg5
{[%clk 00:00:13]} {[%emt 00:00:09]} Ke6 {[%clk 00:03:56]} {[%emt 00:00:06]} 54.
f5+ {[%clk 00:00:09]} {[%emt 00:00:09]} gxf5 {[%clk 00:03:41]} {[%emt
00:00:20]} 55. Kxh5 {[%clk 00:00:12]} {[%emt 00:00:01]} Ke5 {[%clk 00:03:15]}
{[%emt 00:00:32]} 56. Kg5 {[%clk 00:00:15]} {[%emt 00:00:01]} Ke6 {[%clk
00:02:51]} {[%emt 00:00:29]} 57. Kh5 {[%clk 00:00:11]} {[%emt 00:00:08]} Kf6
{[%clk 00:02:55]} {[%emt 00:00:02]} 58. Kh6 {[%clk 00:00:13]} {[%emt 00:00:03]}
Ke7 {[%clk 00:02:30]} {[%emt 00:00:31]} 59. Kg7 {[%clk 00:00:13]} {[%emt
00:00:03]} Ke6 {[%clk 00:02:34]} {[%emt 00:00:02]} 60. Kh7 {[%clk 00:00:08]}
{[%emt 00:00:10]} Kf6 {[%clk 00:02:01]} {[%emt 00:00:38]} 61. Kh6 {[%clk
00:00:11]} {[%emt 00:00:02]} Ke7 {[%clk 00:02:05]} 62. Kg7 {[%clk 00:00:13]}
{[%emt 00:00:03]} Ke6 {[%clk 00:02:05]} {[%emt 00:00:06]} 63. Kh7 {[%clk
00:00:08]} {[%emt 00:00:10]} Ke5 {[%clk 00:00:48]} {[%emt 00:01:21]} 64. Kg7
{[%clk 00:00:11]} {[%emt 00:00:02]} Ke6 {[%clk 00:00:20]} {[%emt 00:00:34]} 65.
Kh7 {[%clk 00:00:15]} {[%emt 00:00:02]} Kd7 {[%clk 00:00:18]} {[%emt 00:00:06]}
66. Kh6 {[%clk 00:00:11]} {[%emt 00:00:08]} Ke6 {[%clk 00:00:12]} {[%emt
00:00:12]} 67. Kh7 {[%clk 00:00:13]} {[%emt 00:00:02]} Ke7 {[%clk 00:00:14]}
{[%emt 00:00:04]} 68. Kg7 {[%clk 00:00:16]} {[%emt 00:00:02]} f6 {[%clk
00:00:06]} {[%emt 00:00:13]} 69. Kg6 {[%clk 00:00:15]} {[%emt 00:00:06]} Ke6
{[%clk 00:00:10]} 70. Kg7 {[%clk 00:00:17]} {[%emt 00:00:03]} Ke5 {[%clk
00:00:12]} {[%emt 00:00:03]} 71. Kf7 {[%clk 00:00:20]} f4 {[%clk 00:00:12]}
{[%emt 00:00:06]} 72. gxf4+ {[%clk 00:00:23]} {[%emt 00:00:02]} Kxf4 {[%clk
00:00:16]} 73. Kxf6 {[%clk 00:00:27]} {[%emt 00:00:02]} 1/2-1/2



[ePGN "0.1;DGT LiveChess/2.2.6"]

[Event "MČR juniorů a juniorek v rapid šachu 2024"]
[Site "Hotel Fit Fun, Harrachov, Czech Republic"]
[Date "2024.09.21"]
[Round "1.5"]
[White "Skypala Ondrej"]
[Black "Housa Jan"]
[Result "1-0"]
[TimeControl "20+5"]
[WhiteFideId "366285"]
[BlackFideId "23736356"]
[WhiteElo "2033"]
[BlackElo "1788"]

1. c4 {[%clk 00:20:06]} {[%emt 00:00:04]} Nf6 {[%clk 00:20:09]} {[%emt
00:00:02]} 2. g3 {[%clk 00:20:05]} {[%emt 00:00:04]} g6 {[%clk 00:20:12]}
{[%emt 00:00:03]} 3. Bg2 {[%clk 00:20:09]} {[%emt 00:00:01]} Bg7 {[%clk
00:20:15]} {[%emt 00:00:02]} 4. Nc3 {[%clk 00:20:13]} {[%emt 00:00:01]} O-O
{[%clk 00:19:55]} {[%emt 00:00:25]} 5. Nf3 {[%clk 00:20:16]} {[%emt 00:00:01]}
c6 {[%clk 00:19:47]} {[%emt 00:00:14]} 6. O-O {[%clk 00:20:19]} {[%emt
00:00:02]} d5 {[%clk 00:19:50]} {[%emt 00:00:02]} 7. d4 {[%clk 00:20:23]} Nbd7
{[%clk 00:19:32]} {[%emt 00:00:23]} 8. b3 {[%clk 00:20:26]} {[%emt 00:00:02]}
b6 {[%clk 00:19:35]} {[%emt 00:00:02]} 9. Bb2 {[%clk 00:20:30]} {[%emt
00:00:01]} Bb7 {[%clk 00:18:51]} {[%emt 00:00:49]} 10. Rc1 {[%clk 00:20:33]}
{[%emt 00:00:02]} Rc8 {[%clk 00:16:22]} {[%emt 00:02:34]} 11. Re1 {[%clk
00:20:37]} Re8 {[%clk 00:16:07]} {[%emt 00:00:20]} 12. Ne5 {[%clk 00:20:38]}
{[%emt 00:00:04]} Nxe5 {[%clk 00:14:17]} {[%emt 00:01:55]} 13. dxe5 {[%clk
00:20:42]} {[%emt 00:00:01]} Ng4 {[%clk 00:14:00]} {[%emt 00:00:22]} 14. Bh3
{[%clk 00:20:45]} h5 {[%clk 00:12:40]} {[%emt 00:01:26]} 15. f3 {[%clk
00:20:49]} Ne3 {[%clk 00:10:10]} {[%emt 00:02:35]} 16. Qd3 {[%clk 00:20:53]}
{[%emt 00:00:01]} d4 {[%clk 00:09:48]} {[%emt 00:00:27]} 17. Bxc8 {[%clk
00:20:56]} {[%emt 00:00:02]} Bxc8 {[%clk 00:09:33]} {[%emt 00:00:19]} 18. Nd1
{[%clk 00:19:54]} {[%emt 00:01:07]} Nxd1 {[%clk 00:07:50]} {[%emt 00:01:48]} 19.
Rcxd1 {[%clk 00:19:56]} {[%emt 00:00:03]} c5 {[%clk 00:07:33]} {[%emt
00:00:22]} 20. e3 {[%clk 00:20:00]} Bf5 {[%clk 00:06:20]} {[%emt 00:01:18]} 21.
Qd2 {[%clk 00:19:56]} {[%emt 00:00:09]} Bh6 {[%clk 00:05:43]} {[%emt 00:00:41]}
22. f4 {[%clk 00:17:45]} {[%emt 00:02:17]} Bg4 {[%clk 00:02:45]} {[%emt
00:03:03]} 23. exd4 {[%emt 00:00:03]} Bxd1 {[%clk 00:02:48]} 24. Rxd1 {[%emt
00:00:17]} cxd4 {[%clk 00:02:35]} {[%emt 00:00:03]} 25. Qxd4 {[%clk 00:17:56]}
Qa8 {[%clk 00:02:16]} {[%emt 00:00:24]} 26. Qd5 {[%clk 00:17:51]} {[%emt
00:00:10]} Qb8 {[%clk 00:02:03]} {[%emt 00:00:17]} 27. e6 {[%clk 00:17:53]}
{[%emt 00:00:04]} f6 {[%clk 00:02:01]} {[%emt 00:00:06]} 28. Qe4 {[%clk
00:17:46]} {[%emt 00:00:13]} Kh7 {[%clk 00:01:43]} {[%emt 00:00:22]} 29. Rd7
{[%clk 00:17:49]} {[%emt 00:00:02]} f5 {[%clk 00:00:58]} {[%emt 00:00:51]} 30.
Qd4 {[%clk 00:17:32]} {[%emt 00:00:21]} h4 {[%clk 00:00:54]} {[%emt 00:00:09]}
31. Qf6 {[%clk 00:17:31]} {[%emt 00:00:06]} 1-0



[ePGN "0.1;DGT LiveChess/2.2.6"]